{"text_format":"1","workbook":"xlsx","n_sheets":15,"sheets":["Start","Anleitung","Dashboard","1 Unternehmensbereiche","2 Klimarisiken Chancen","3a Scoping Matrix","4a Sensitivität Hitze","4b Sensitivität Überschwemmung","4c Sensitivität Stürme Hagel","5 Risikomatrix","6 Bewertung Maßnahmen","7 Beteiligte","8 Prozesse","9 Monitoring","Impressum"],"not_rendered":{"charts":0,"images":15,"macros":1,"external_links":0,"defined_names":0,"comments":11,"pivot_tables":0},"unopened":[],"bounds":{"document_bytes":16777216,"sheet_cells":100000,"rows_first":2000,"rows_last":500,"rows_between":2000,"halvings":0,"cell_chars":16384,"cell_head_chars":4096},"cells_cut":0,"cells_raw":0,"read":"whole","date_system":"1900"}

{"sheet":"Start","index":0,"n_rows":38,"n_cols":7,"rows_kept":38,"cut":false,"hidden":false,"merged":[[38,1,38,2],[38,4,38,6],[13,1,13,6],[31,1,31,6],[32,2,32,6],[33,2,34,6],[35,2,36,6],[37,1,37,6]]}
[null,"HDE-Adapt Arbeitshilfen zur Klimaanpassung",null,null,null,null,2024]
[]
[null,"Herzlich willkommen bei den HDE-Adapt Arbeitshilfen zur Klimaanpassung."]
[]
[]
[]
[]
[]
[]
[]
[]
[]
[]
[null,"Einleitung"]
[]
[]
[]
[]
[]
[]
[]
[]
[]
[]
[]
[]
[]
[]
[]
[]
[]
[null,"Bereiche des Tools"]
[null,"Anleitung","Hier finden Sie Hilfestellungen zur Benutzung der Arbeitshilfe."]
[null,"Dashboard","Nutzen Sie das Dashboard um eine Übersicht über die verfügbaren Formulare zu erhalten."]
[]
[null,"Formulare","Auf den weiteren Seiten finden Sie Formulare sowie eine Vorlage zum Monitoring. "]
[]
[null,"Haftungsausschluss"]

{"sheet":"Anleitung","index":1,"n_rows":55,"n_cols":7,"rows_kept":55,"cut":false,"hidden":false,"merged":[[54,1,54,6],[4,11,4,16],[20,1,20,6],[20,8,20,13],[39,1,39,2],[39,4,39,6],[24,1,24,6],[30,1,30,6],[35,1,35,6],[12,1,12,6],[2,5,2,6],[3,1,3,6],[42,1,42,6],[31,1,31,6],[46,1,46,6]]}
[{"$f":" RIGHT(CELL(\"filename\", A1), LEN(CELL(\"filename\", A1)) - SEARCH(\"]\", CELL(\"filename\", A1)))","v":"Anleitung"},null,null,null,null,null,2024]
[]
[]
[null,"Aktivierung der Makros in Windows:"]
[]
[]
[]
[]
[]
[]
[]
[]
[null,"Andere Betriebssysteme:"]
[]
[]
[]
[]
[]
[]
[]
[null,"Verwendung des Dashboards:"]
[]
[]
[]
[]
[]
[]
[]
[]
[]
[]
[null,"Verwendung der Formulare:"]
[]
[]
[]
[]
[]
[]
[]
[]
[]
[]
[]
[]
[]
[]
[null,"Zurücksetzen auf den Originalzustand:"]
[]
[]
[]
[]
[]
[]
[]
[null,"Seitenschutz:"]

{"sheet":"Dashboard","index":2,"n_rows":16,"n_cols":9,"rows_kept":16,"cut":false,"hidden":false,"merged":[[9,4,9,8],[1,7,1,8],[6,4,6,8],[7,4,7,8],[8,4,8,8],[2,1,2,8],[3,1,3,8],[4,1,4,8],[18,3,18,8],[10,4,10,8],[11,4,11,8],[12,4,12,8],[16,3,16,4],[16,6,16,8],[13,4,13,8],[14,4,14,8]]}
[{"$f":" RIGHT(CELL(\"filename\", A1), LEN(CELL(\"filename\", A1)) - SEARCH(\"]\", CELL(\"filename\", A1)))","v":"Dashboard"},null,null,null,null,null,null,null,2024]
[]
[null,"Willkommen auf dem Dashboard. Bitte befolgen Sie folgende Schritte:"]
[]
[]
[null,1,null,"Unternehmensbereiche"]
[null,2,null,"Klimarisiken und Chancen"]
[null,3,null,"Scoping Matrix"]
[null,4,"a","Sensitivität Hitze"]
[null,4,"b","Sensitivität Überschwemmung"]
[null,4,"c","Sensitivität Stürme Hagel"]
[null,5,null,"Risikomatrix"]
[null,6,null,"Bewertung Maßnahmeoptionen"]
[null,7,null,"Beteiligte"]
[null,8,null,"Prozesse"]
[null,9,null,"Monitoring"]

{"sheet":"1 Unternehmensbereiche","index":3,"n_rows":29,"n_cols":5,"rows_kept":29,"cut":false,"hidden":false,"merged":[[0,3,1,3],[3,1,3,4],[16,1,16,4],[23,1,23,4],[0,4,1,4]]}
[{"$f":" RIGHT(CELL(\"filename\", A1), LEN(CELL(\"filename\", A1)) - SEARCH(\"]\", CELL(\"filename\", A1)))","v":"1 Unternehmensbereiche"},null,null,null,"Hinweis zum\nDrucken/PDF"]
[]
[null,"Unternehmensbereiche* ","Vorhanden \n(Ja, nein)","Voraussichtliche Lebensdauer / Nutzungszeit >10 Jahre? (Ja, nein)","Anmerkungen, wie Bedeutung für die Wirtschaftsleistung, Notwendigkeit der  Berücksichtigung im Prozess Klimaanpassung"]
[null,"Standort - Geschäft, Lager, Außenflächen"]
[null,"Verkaufsräume und -einrichtung"]
[null,"Lagerräume und -flächen"]
[null,"Büros"]
[null,"Aufenthaltsräume für Mitarbeitende und Kund:innen"]
[null,"Einrichtungen zur Anlieferung von Ware"]
[null,"Parkplätze"]
[null,"Grünflächen"]
[null,"Weitere Außenflächen "]
[null,"Technische Infrastruktur, wie IT, Klimatisierung"]
[null,"Verkehrsanbindung für die An- und Auslieferung von Ware "]
[null,"Verkehrsanbindung für die Anfahrt von Mitarbeitenden und Kund:innen"]
[null,"…"]
[null,"Organisation / Prozesse / Kund:innen"]
[null,"Einkaufsorganisation inkl. Auswahl von Lieferanten diverser Verkaufsware und Bedarfsartikel (Lieferketten) und Lagerwirtschaft"]
[null,"Verkaufssteuerung, Nachfragemanagement, Kundenkreis und dessen Bedarfsentwicklung bzgl. Klimawandel  "]
[null,"Gesundheits- und Arbeitsschutz"]
[null,"Personalmanagement"]
[null,"Finanzen und Versicherungen"]
[null,"…*"]
[null,"Vorketten / Lieferketten"]
[null,"Externe Infrastruktur und Versorgungsdienstleister mit Energie, Wasser, Abwasser, Internet, Telekommmunikation"]
[null,"Standorte von Produktionsanlagen / Anbaugebiete der Produzenten und Lieferanten"]
[null,"Standorte von Großhändlern"]
[null,"Logistikservices für die Lieferung oder Weiterversendung von Ware"]
[null,"…*"]

{"sheet":"2 Klimarisiken Chancen","index":4,"n_rows":20,"n_cols":10,"rows_kept":20,"cut":false,"hidden":false,"merged":[[1,0,1,4],[3,1,3,2],[4,8,4,9],[6,1,8,1],[9,1,19,1],[3,3,3,7],[4,4,4,5],[4,6,4,7],[0,7,1,7],[0,6,1,6],[0,8,1,8]]}
[{"$f":" RIGHT(CELL(\"filename\", A1), LEN(CELL(\"filename\", A1)) - SEARCH(\"]\", CELL(\"filename\", A1)))","v":"2 Klimarisiken Chancen"},null,null,null,null,null,null,null,"Hinweis zum\nDrucken/PDF"]
["Potenziell relevante Klimarisiken und -chancen ermitteln "]
[]
[null,"Unternehmensbereich*: ",null,"… [eintragen, siehe Liste Formular 1]  "]
[null,null,null,null,"Risiken",null,"Risiken",null,"Chancen"]
[null,null,"Klimafolgen /-gefahren","Ist das Auftreten der Klimagefahr** für den Unternehmensbereich möglich? (Ja, nein, vielleicht)","Würde der Unternehmensbereich negativ beeinflusst werden, wenn die Klimagefahr in ihrer extremsten Form auftritt? (Ja, nein, vielleicht)","Wenn ja, könnten die potenziellen nachteiligen Auswirkungen auf den Unternehmensbereich die Wirtschaftstätigkeit erheblich beeinträchtigen? (Ja, nein, vielleicht)","Anmerkungen, wie Beschreibung der potenziellen Gefährdung","In die Klimarisikoanalyse einbeziehen? (ja, nein)","Wenn die Klimafolge für den Unternehmensbereich auftreten kann, gibt es für diesen Bereich auch positive Effekte?","Beschreibung der potenziellen Chancen "]
[null,"Gefahr für nahezu jedes Unternehmen","Hitzewellen"]
[null,null,"Starkregenüberflutungen"]
[null,null,"Stürme und Hagel"]
[null,"Weitere Gefahren","Flusshochwasser"]
[null,null,"Sturmfluten "]
[null,null,"Wasserknappheit / Dürre"]
[null,null,"Erdrutsche"]
[null,null,"Anstieg der Jahres-durchschnittstemperatur"]
[null,null,"Meeresspiegelanstieg"]
[null,null,"Verschiebung der Niederschlagsmuster"]
[null,null,"Verschiebung der Jahreszeiten"]
[null,null,"Verbreitung von Schädlingen "]
[null,null,"…"]
[null,null,"…"]

{"sheet":"3a Scoping Matrix","index":5,"n_rows":32,"n_cols":21,"rows_kept":32,"cut":false,"hidden":false,"merged":[[1,0,2,14],[0,15,1,20],[4,15,4,20],[19,2,19,20],[26,2,26,20],[4,3,4,14],[6,1,31,1],[6,2,6,20]]}
[{"$f":" RIGHT(CELL(\"filename\", A1), LEN(CELL(\"filename\", A1)) - SEARCH(\"]\", CELL(\"filename\", A1)))","v":"3a Scoping Matrix"},null,null,null,null,null,null,null,null,null,null,null,null,null,null,"Hinweis zum\nDrucken/PDF"]
["Zusammenfassung zur Festlegung des Untersuchungsrahmens: Relevante Unternehmensbereiche und mögliche Beeinträchtigung durch Klimarisiken - Übertrag der Ergebnisse aus Formular 2"]
[]
[]
[null,null,null,"Klimagefahren",null,null,null,null,null,null,null,null,null,null,null,"Weitere Klimagefahren*"]
[null,null,null,"Hitze","Starkregenüberschwemmungen","Stürme und Hagel","Flusshochwasser","Sturmfluten ","Dürre","Erdrutsche","Anstieg der Jahres-durchschnittstemperatur","Meeresspiegelanstieg","Verschiebung der Niederschlagsmuster","Verschiebung der Jahreszeiten","Verbreitung von Schädlingen ","*…","*…","*…","*…","*…","*…"]
[null,"Unternehmensbereiche *       ","Standort - Geschäft, Lager, Außenflächen"]
[null,null,"Verkaufsräume und\n-einrichtung"]
[null,null,"Lagerräume und -flächen"]
[null,null,"Büros"]
[null,null,"Aufenthaltsräume für Mitarbeitende und Kund:innen"]
[null,null,"Einrichtungen zur Anlieferung von Ware"]
[null,null,"Parkplätze"]
[null,null,"Grünflächen"]
[null,null,"Weitere Außenflächen "]
[null,null,"Technische Infrastruktur, wie IT, Klimatisierung"]
[null,null,"Verkehrsanbindung für die An- und Auslieferung von Ware "]
[null,null,"Verkehrsanbindung für die Anfahrt von Mitarbeitenden und Kund:innen"]
[null,null,"*…"]
[null,null,"Organisation / Prozesse / Kund:innen"]
[null,null,"Einkaufsorganisation inkl. Auswahl von Lieferanten diverser Verkaufsware und Bedarfsartikel (Lieferketten) und Lagerwirtschaft"]
[null,null,"Verkaufssteuerung, Nachfragemanagement, Kundenkreis und dessen Bedarfsentwicklung bzgl. Klimawandel  "]
[null,null,"Gesundheits- und Arbeitsschutz"]
[null,null,"Personalmanagement"]
[null,null,"Finanzen und Versicherungen"]
[null,null,"*…"]
[null,null,"Vorketten / Lieferketten"]
[null,null,"Externe Infrastruktur und Versorgungsdienstleister mit Energie, Wasser, Abwasser, Internet, Telekommmunikation"]
[null,null,"Standorte von Produktionsanlagen / Anbaugebiete der Produzenten und Lieferanten"]
[null,null,"Standorte von Großhändlern"]
[null,null,"Logistikservices für die Lieferung oder Weiterversendung von Ware"]
[null,null,"*…"]

{"sheet":"4a Sensitivität Hitze","index":6,"n_rows":40,"n_cols":6,"rows_kept":40,"cut":false,"hidden":false,"merged":[[0,2,0,3],[2,0,2,5],[35,1,35,5],[6,1,6,5],[23,1,23,5],[28,1,28,5],[32,1,32,5],[0,4,0,5]]}
[{"$f":" RIGHT(CELL(\"filename\", A1), LEN(CELL(\"filename\", A1)) - SEARCH(\"]\", CELL(\"filename\", A1)))","v":"4a Sensitivität Hitze"},null,null,null,"Hinweis zum\nDrucken/PDF"]
[]
["Prüffragen zur Einschätzung möglicher Sensitivität gegenüber sommerlicher Hitzebelastung und Trockenheit*"]
[]
[]
[null,"Prüffragen","ja \n(sensitiv)","weiß nicht \n(sensitiv)","nein","Anmerkungen, z.B. zu Relevanz, Ausmaß, weitere Prüfung …"]
[null,"Gebäude"]
[null,"Die Gebäude liegen in einer Region mit hoher Hitzebelastung."]
[null,"Die Gebäude liegen in einem stark verdichteten, wenig begrünten Gebiet (Innenstadt, dichtes Gewerbegebiet)."]
[null,"Erfahrung: Heizt sich das Gebäude im Sommer stark auf?"]
[null,"Erfahrung: Kühlt das Gebäude nachts nur geringfügig ab?"]
[null,"Zu hohe Temperaturen im Gebäude sind ein Problem für dessen Nutzung, Mitarbeitende und Kundschaft."]
[null,"Die Gebäudedämmung (Dach, Fassade) ist gegenüber Hitzeeintrag unzureichend."]
[null,"Die Fassade oder das Dach sind in dunkler Farbe gehalten und/oder aus Materialien, die sich im Sommer besonders stark aufheizen."]
[null,"Die Gebäude haben viele und/oder große Glasflächen nach Südost, Süd oder West bzw. im Dachraum, die zudem nicht verschattet werden können."]
[null,"Das Gebäudedesign und die Raumanordnung schränken die Lüftungsmöglichkeiten insbesondere in der Nacht ein."]
[null,"Die Gebäude besitzen kein Gründach."]
[null,"Die Gebäude besitzen keine Fassadenbegrünung."]
[null,"Im Geschäft / Lager befinden sich wärme- oder hitzeempfindliche Waren."]
[null,"Es besteht keine Klimatisierung und Kühltechnik oder die vorhandene ist unszureichend."]
[null,"Die vorhandene Klimatisierung und Kühltechnik ist energieintensiv. "]
[null,"Vorhandene Technik ist anfällig gegen hohe Temperaturen. "]
[null,"Die Mitarbeitenden sind nicht zum Verhalten bei Hitze eingewiesen (persönliches Verhalten, korrektes Lüften und Verschatten)."]
[null,"Außenflächen"]
[null,"Erfahrung: Heizen sich die Außenflächen im Sommer stark auf?"]
[null,"Die Außenanlagen sind zu großen Teilen mit künstlichen Belägen versiegelt oder belegt (Beton, Pflaster, Asphalt, Schotter, etc.)."]
[null,"Es befinden sich keine oder sehr wenige Bäume und Grünflächen auf den Außenanlagen."]
[null,"Die Außenanlagen sind nicht / wenig verschattet."]
[null,"Logistik"]
[null,"Es gibt wärme- und hitzeempfindliche Waren, die Kühl- oder Spezialtransporte erfordern."]
[null,"Die Verfügbarkeit von ausreichend und geeigneten Kühltransporten ist insbesondere in Hitzeperioden eingeschränkt."]
[null,"Die Warenlieferung erfolgt aus Regionen mit extremen sommerlichen Hitzeperioden und Waldbrandgefahr, wie beispielsweise Südeuropa."]
[null,"Lieferketten"]
[null,"Viele oder entscheidende Warensegmente kommen aus Gebieten mit Gefahr für extreme Hitzebelastung oder Dürregefahr."]
[null,"Es gibt für einzelne Artikel und Warensegmente nur einen / sehr wenige Lieferant(en) und zudem aus nur einer Region."]
[null,"Kunden und Nachfrage"]
[null,"Das Sortiment umfasst insbesondere Waren für die kältere Jahreszeit."]
[null,"Es ist schwierig, flexibel auf geänderte Kundennachfrage nach Waren für starke sommerliche Hitze zu reagieren."]
[null,"Die Verkaufsräume sind im Sommer aufgeheizt."]
[null,"Das Geschäft befindet sich in einer aufgeheizten Umgebung (verdichtete Innenstadt)."]

{"sheet":"4b Sensitivität Überschwemmung","index":7,"n_rows":45,"n_cols":6,"rows_kept":45,"cut":false,"hidden":false,"merged":[[41,1,41,5],[2,0,2,5],[1,1,1,4],[0,4,0,5],[5,1,5,5],[32,1,32,5],[37,1,37,5]]}
[{"$f":" RIGHT(CELL(\"filename\", A1), LEN(CELL(\"filename\", A1)) - SEARCH(\"]\", CELL(\"filename\", A1)))","v":"4b Sensitivität Überschwemmung"},null,null,null,"Hinweis zum\nDrucken/PDF"]
[null,"Prüffragen zur Einschätzung möglicher Sensitivität gegenüber Überschwemmungen durch Starkregen, Flusshochwasser oder Sturmfluten*"]
[]
[]
[null,"Prüffragen","ja \n(sensitiv)","weiß nicht \n(sensitiv)","nein","Anmerkungen, z.B. zu Relevanz, Ausmaß, weitere Prüfung …"]
[null,"Gebäude und Außenflächen"]
[null,"Erfahrung: Gab es bereits Schäden oder Beeinträchtigungen durch Überschwemmungen der Gebäude / Außenanlagen? "]
[null,"Erfahrung: Gab es in der Vergangenheit überlaufende Kanaldeckel?"]
[null,"Erfahrung: Gab es in der Vergangenheit überlaufende Dachrinnen?"]
[null,"Erfahrung: Gab es in der Vergangenheit Rückstau im Keller?"]
[null,"Erfahrung: Hat die Versicherung bereits Schadenszahlungen durch Überschwemmungen abgelehnt?"]
[null,"Die Gebäude / die Außenanlagen liegen in einem potenziellen Überflutungsgebiet. (selbst wenn von Deichen geschützt)"]
[null,"Die Gebäude / die Außenanlagen liegen nahe an einem Fluss oder Bach."]
[null,"Die Gebäude / die Außenanlagenbefinden sich in tiefer liegenden Gebieten, Senken oder Tallagen (auch flachen)."]
[null,"Die Gebäude / die Außenanlagen liegen am Hang (Gefahr von Erdrutschen)."]
[null,"Die Gebäude / die Außenanlagen befinden sich entlang von Fließpfaden auf benachbarten Straßen und Grundstücken bei extremen Starkregenereignissen."]
[null,"Das umgebende Gelände fällt zum Gebäude / den Außenanlagen hin ab."]
[null,"Die Gebäude / die Außenanlagen befinden sich in einem stark verdichteten und versiegelten Gebiet (Innenstadt, dichtes Gewerbegebiet)."]
[null,"Auf den Außenflächen befinden sich Einrichtungen, Infrastruktur oder Nutzungen, die bei Überflutung Schaden nehmen können."]
[null,"Die Gebäude haben kein Gründach."]
[null,"Die Gebäude haben Räume unterhalb der Rückstauebene (Straßenoberkante), wie Keller, Tiefgarage."]
[null,"Eingänge und Schwellen im Erdgeschoss, zu Kellerschächten und -fenstern, Abgänge, nach unten führende Treppen, Tiefgarageneinfahrten befinden sich nur gering über dem Straßenniveau?"]
[null,"Gegen Wassereintrag ungesicherte technische Infrastruktur,  Installationen, Nutzungen (Server, Elektroanschlüsse, ungesicherte Wasser- und Abwassereinrichtungen, Büros, Lager …) befinden sich unterhalb oder auf Straßenniveau."]
[null,"Wasserempfindliche Ware befindet sich im Kellergeschoss oder ebenerdig in Fußbodennähe?"]
[null,"Es gibt keine Rücksicherung in Räumen unterhalb der Rückstauebene. "]
[null,"Es gibt keine Vorkehrungen (Schotten, Sandsäcke, Barrieren), um eindringendes Wasser zu stoppen. "]
[null,"Die Bauwerksabdichtung gegen Bodenfeuchtigkeit und drückendes Wasser ist unzureichend."]
[null,"Es gibt keinen Notfallplan."]
[null,"Die Außenanlagen sind zu großen Teilen mit wasserundurchlässigen oder schwer durchlässigen Belägen versiegelt (Beton, Pflaster, Asphalt)."]
[null,"Es existieren keine / sehr wenige Grünflächen."]
[null,"Die Mitarbeitenden sind nicht für den Notfall geschult."]
[null,"Eine Gebäudeversicherung, die  Überschwemmungsschäden abdeckt, existiert nicht oder ist unzureichend."]
[null,"Logistik"]
[null,"Es gibt nur eine Zufahrtsmöglichkeit, die überschwemmt sein könnte."]
[null,"Die Zufahrtswege im Umfeld sind überflutungsgefährdet."]
[null,"Die Einrichtungen von Anlieferung und Abtransport sind tiefer gelegen und überflutungsgefährdet."]
[null,"Es gibt keine ausreichende Notversorgung im Falle von Störungen der Stromversorgung, Internet, Telekommunikation, Wasser, Abwasser ... "]
[null,"Lieferketten"]
[null,"Es gibt für einzelne Artikel und Warensegmente nur einen / sehr wenige Lieferant(en) und zudem aus nur einer Region."]
[null,"Die Waren kommen aus besonders überschwemmungsanfälligen Regionen."]
[null,"Die Waren  werden durch besonders überschwemmungsanfällige Regionen transportiert."]
[null,"Kunden und Nachfrage"]
[null,"Die Zufahrts- oder Zugangswege am Geschäft oder im Umfeld sind überflutungsgefährdet."]
[null,"Die Kundenparkplätze befinden sich in einem tiefergelegenen Bereich."]
[null,"Eine Geschäftsausfallversicherung, die den Geschäftsausfall durch Überflutungsschäden ausgleicht, existiert nicht."]

{"sheet":"4c Sensitivität Stürme Hagel","index":8,"n_rows":35,"n_cols":6,"rows_kept":35,"cut":false,"hidden":false,"merged":[[1,1,1,4],[2,0,2,5],[32,1,32,5],[21,1,21,5],[5,1,5,5],[25,1,25,5],[28,1,28,5]]}
[{"$f":" RIGHT(CELL(\"filename\", A1), LEN(CELL(\"filename\", A1)) - SEARCH(\"]\", CELL(\"filename\", A1)))","v":"4c Sensitivität Stürme Hagel"},null,null,null,null,"Hinweis zum\nDrucken/PDF"]
[null,"Prüfrahmen zur Einschätzung möglicher Sensitivität gegenüber Stürmen und Hagel*"]
[]
[]
[null,"Prüffragen","ja \n(sensitiv)","weiß nicht \n(sensitiv)","nein","Anmerkungen, z.B. zu Relevanz, Ausmaß, weitere Prüfung …"]
[null,"Gebäude und Außenflächen"]
[null,"Erfahrung: Gab es bereits Schäden oder Beeinträchtigungen durch Sturm oder Hagel der Gebäude / Außenanlagen? "]
[null,"Erfahrung: Hat die Versicherung bereits Schadenszahlungen durch Sturm oder Hagel abgelehnt?"]
[null,"Die Gebäude / die Außenanlagen liegen in windanfälligem Gelände, z.B. Kuppen, oder freiliegend, im Sogbereich."]
[null,"Das Gebäude oder Aufbauten sind schwingungsanfällig."]
[null,"Außenwand und Dachflächen sind stark strukturiert, sie haben beispielsweise große Auskragungen, Vordächer, Dachüberstände, Sonnenschutzsysteme, Werbetafeln, Antennen, Masten, Lichtkuppeln, Dachdurchdringungen, Solarmodule."]
[null,"Außenliegende Bauteile und Konstruktionen haben ein geringes Eigengewicht."]
[null,"Die Dachneigung und -konstruktion begünstigt hohe Sogkräfte (hohe Sogkräfte im Lee von Steildächern oder Dachkanten)."]
[null,"Die Befestigungen der Dachhaut bzw. der Abdeckbleche im Dachrandbereich sind mangelhaft."]
[null,"Die Tragekonstruktion des Daches ist sehr leicht und die Verankerung schwach. "]
[null,"Zuluftöffnungen und Dachüberstand bieten erhöhte Windangriffsgefahr."]
[null,"Die Fassade ist mit Wandelementen bekleidet, die großflächig, leicht und/oder unzureichend verbaut und verankert sind."]
[null,"Die Fassade ist großflächig verglast."]
[null,"Die Fassaden- und Dachmaterialien sind wenig widerstandsfähig gegen Hagel."]
[null,"Hoher Baumbestand grenzt unmittelbar an das Gebäude. "]
[null,"Eine Gebäudeversicherung, die Sturm und Hagelschäden abdeckt, existiert nicht oder ist unzureichend."]
[null,"Außenanlagen"]
[null,"Das Gelände liegt frei und ist sehr windanfällig."]
[null,"Auf den Außenflächen befinden sich Einrichtungen, große Werbetafeln, Infrastruktur, Nutzungen, die bei Stürmen oder Hagel Schaden nehmen bzw. Personen und andere Infrastrukturen beim Fall schädigen können. "]
[null,"Hoher Baumbestand grenzt unmittelbar an das Gebäude oder die genutzte Freifläche, der wenn geschwächt, eine Gefährung darstellt."]
[null,"Logistik"]
[null,"Die Lieferfahrzeuge sind anfällig gegenüber Hagel. "]
[null,"Es gibt keine ausreichende Notversorgung im Falle von Störungen der Stromversorgung, Internet, Telekommunikation, Wasser, Abwasser ... "]
[null,"Lieferketten"]
[null,"Es gibt für einzelne Artikel und Warensegmente nur einen / sehr wenige Lieferant(en) und zudem aus nur einer Region."]
[null,"Die Waren oder ihre Rohstoffe sind besonders anfällig gegenüber Hagel und Stürmen."]
[null,"Waren kommen aus Übersee mit dem Schiff. "]
[null,"Kunden und Nachfrage"]
[null,"Die Zufahrts- oder Zugangswege als auch Kundenparkplätze sind ungeschützt gegen Hagel und Sturm."]
[null,"Eine Geschäftsausfallversicherung, die den Geschäftsausfall durch Sturm oder Hagelschäden ausgleicht, existiert nicht."]

{"sheet":"5 Risikomatrix","index":9,"n_rows":17,"n_cols":24,"rows_kept":17,"cut":false,"hidden":false,"merged":[[0,14,0,15],[3,21,3,23],[2,12,2,23],[5,1,16,1],[2,3,2,11],[3,18,3,20],[3,3,3,5],[3,6,3,8],[3,9,3,11],[3,12,3,14],[3,15,3,17],[0,17,0,23]]}
[{"$f":" RIGHT(CELL(\"filename\", A1), LEN(CELL(\"filename\", A1)) - SEARCH(\"]\", CELL(\"filename\", A1)))","v":"5 Risikomatrix"},null,null,null,null,null,null,null,null,null,null,null,null,null,null,null,null,"Hinweis zum\nDrucken/PDF"]
[]
[null,null,null,"Klimagefahren",null,null,null,null,null,null,null,null,"Weitere Klimagefahren*"]
[null,null,null,"Hitze",null,null,"Starkregenüber-schwemmungen",null,null,"Stürme und Hagel",null,null,"*…",null,null,"*…",null,null,"*…",null,null,"*…"]
[null,null,null,"Aktuelles Risiko","schwacher Klimawandel","starker Klimawandel","Aktuelles Risiko","schwacher Klimawandel","starker Klimawandel","Aktuelles Risiko","schwacher Klimawandel","starker Klimawandel","Aktuelles Risiko","schwacher Klimawandel","starker Klimawandel","Aktuelles Risiko","schwacher Klimawandel","starker Klimawandel","Aktuelles Risiko","schwacher Klimawandel","starker Klimawandel","Aktuelles Risiko","schwacher Klimawandel","starker Klimawandel"]
[null,"Unternehmensbereiche, wie …*","Verkaufsgebäude"]
[null,null,"Aufbauten auf Gebäude"]
[null,null,"Kellergeschoss"]
[null,null,"Lagerhaus"]
[null,null,"Zugang zum Lager "]
[null,null,"Stromversorgung"]
[null,null,"Arbeitsklima"]
[null,null,"Großhandelslager"]
[null,null,"Anbaugebiet"]
[null,null,"Produktions-stätte"]
[null,null,"*…"]
[null,null,"*…"]

{"sheet":"6 Bewertung Maßnahmen","index":10,"n_rows":15,"n_cols":5,"rows_kept":15,"cut":false,"hidden":false,"merged":[[3,2,3,4],[4,2,4,4],[5,1,6,1],[0,3,0,4]]}
[{"$f":" RIGHT(CELL(\"filename\", A1), LEN(CELL(\"filename\", A1)) - SEARCH(\"]\", CELL(\"filename\", A1)))","v":"6 Bewertung Maßnahmen"},null,null,"Hinweis zum\nDrucken/PDF"]
["Probleme, Maßnahmen und deren Bewertungen"]
[]
[null,"Zu lösendes Problem *: ","…"]
[null,"Beschreibung des Problems:","…"]
[null,"Bewertungskriterien **","Maßnahmeoption 1","Maßnahmeoption 2","Maßnahmeoption 3"]
[null,null,"… (Name)","… (Name)","… (Name)"]
[null,"Effektivität in Bezug auf die Risikominimierung / die Chancennutzung"]
[null,"Technische Machbarkeit, Platzbedarf …"]
[null,"Kosten und verfügbare Ressourcen / Kapazitäten"]
[null,"Synergien / Konfliktvermeidung mit anderen Maßnahmen oder Bereichen"]
[null,"Potenzielle Konflikte mit anderen Nutzungen"]
[null,"Zusätzlich generierter Nutzen"]
[null,"**…"]
[null,"**…"]

{"sheet":"7 Beteiligte","index":11,"n_rows":21,"n_cols":6,"rows_kept":21,"cut":false,"hidden":false,"merged":[[0,3,1,3],[0,4,0,5]]}
[{"$f":" RIGHT(CELL(\"filename\", A1), LEN(CELL(\"filename\", A1)) - SEARCH(\"]\", CELL(\"filename\", A1)))","v":"7 Beteiligte"},null,null,null,"Hinweis zum\nDrucken/PDF"]
[]
[null,"Beteiligte Personen / Abteilungen"]
[null,"Beteiligte Personen / Abteilungen *","Art der Betroffenheit durch Risiken oder Chancen","Handlungs-optionen","Rolle / Aufgaben in den weiteren Prozessen","Ansprech-partner:in"]
[null,"Geschäftsleitung, Strategien"]
[null,"Risikomanagement"]
[null,"Umweltabteilung, Nachhaltigkeit, Klimaschutz"]
[null,"Finanzen"]
[null,"Einkauf"]
[null,"Logistik"]
[null,"Facilitymanagement"]
[null,"Werkschutz, Werksfeuerwehr"]
[null,"Kommunikationsabteilung"]
[null,"Personalabteilung"]
[null,"Gesundheits- und Arbeitsschutz"]
[null,"*…"]
[null,"*…"]
[null,"*…"]
[null,"*…"]
[null,"*…"]
[null,"*…"]

{"sheet":"8 Prozesse","index":12,"n_rows":16,"n_cols":4,"rows_kept":16,"cut":false,"hidden":false,"merged":[[3,1,3,3],[0,2,2,2]]}
[null,{"$f":" RIGHT(CELL(\"filename\", B1), LEN(CELL(\"filename\", B1)) - SEARCH(\"]\", CELL(\"filename\", B1)))","v":"8 Prozesse"},null,"Hinweis zum\nDrucken/PDF"]
[]
[]
[null,"Prozesse zur Integration und Verankerung von Klimaanpassung"]
[null,"Prozesse *","Relevante Aspekte für Klimaanpassung","Art der Integration in den Klimaanpassungsprozess"]
[null,"Entwicklung der Geschäftsstrategie"]
[null,"Allgemeines Risikomanagement beispielsweise nach ISO 31000:2018"]
[null,"Nachhaltigkeits- und Klimastrategie und Berichterstattung"]
[null,"Finanzplanung"]
[null,"Einkaufsplanung, Vertrieb und Logistikplanung"]
[null,"Arbeits- und Gesundheitsschutz"]
[null,"Wartungs- und Unterhaltspläne, Neubauplanung"]
[null,"Personalentwicklung und Unternehmenskultur"]
[null,"*…"]
[null,"*…"]
[null,"*…"]

{"sheet":"9 Monitoring","index":13,"n_rows":13,"n_cols":10,"rows_kept":13,"cut":false,"hidden":false,"merged":[[1,1,1,3],[0,7,1,7],[0,8,0,9]]}
[{"$f":" RIGHT(CELL(\"filename\", A1), LEN(CELL(\"filename\", A1)) - SEARCH(\"]\", CELL(\"filename\", A1)))","v":"9 Monitoring"},null,null,null,null,null,null,null,"Hinweis zum\nDrucken/PDF"]
[]
[]
[null,"Erfassungsblatt für Erfolgskontrolle (Monitoring)"]
[null,"Nr.","Maßnahme","Ziel","Aktueller Wert","Zielwert","Prozess-Indikator","aktueller Wert","Wirkungs-Indikator**","aktueller Wert"]
[null,1,"300 m2 Dachbegrünung auf Gebäude X bis MM/JJJJ","Senkung der Innenraumtemperatur in Hitzeperioden","Höchstwerte um 32 °C","maximal 26 °C","m2 Dachfläche begrünt","300 m2","Innenraumtemperatur an heißen Tagen ","26°C werden eingehalten"]
[null,{"$f":"B6+1","v":2},"Diversifizierung von Lieferanten für Produkt X bis MM/JJJJ ","Resilienz gegenüber wetter-/klimabedingten Lieferschwierigkeiten","5x im Jahr Lieferschwierigkeiten","Maximal 1x Lieferschwierigkeiten im Jahr","Anzahl der Lieferanten aus unterschiedlichen Liefergebieten ",12,"Anzahl der Lieferschwierigkeiten","3x Lieferschwierigkeiten im Jahr"]
[null,{"$f":"B7+1","v":3}]
[null,4]
[null,5]
[null,6]
[null,7]
[null,8]

{"sheet":"Impressum","index":14,"n_rows":15,"n_cols":3,"rows_kept":15,"cut":false,"hidden":false,"merged":[[12,2,12,3],[14,2,14,3]]}
[{"$f":" RIGHT(CELL(\"filename\", A1), LEN(CELL(\"filename\", A1)) - SEARCH(\"]\", CELL(\"filename\", A1)))","v":"Impressum"}]
[]
[]
[]
[]
[]
[]
[]
[]
[]
[]
[]
[null,null,"www.birgitgeorgi.eu"]
[]
[null,null,"https://bit.ly/HDE-Adapt"]